fUST/lending_fUST_20250524
["ID","MTS","AMOUNT","RATE_DAILY","PERIOD"]
[362170560,1748052649266,-202.22033016,0.000244,11]
[362170561,1748052649276,-202.22033016,0.00024445,11]
[362170562,1748052649286,-215.0738,0.00024449,2]
[362170563,1748052649296,-430.0,0.00024463,2]
[362170564,1748052649305,-430.0,0.00024463,2]
[362170565,1748052649315,-430.0,0.00024463,2]
[362170566,1748052649324,-5785.77,0.00024463,2]
[362170567,1748052649334,-845.65,0.00024463,2]
[362170568,1748052649343,-430.0,0.00024463,2]
[362170569,1748052649354,-8985.62,0.00024463,2]
[362170570,1748052649363,-7691.43,0.00024463,2]
[362170571,1748052649373,-430.0,0.00024463,2]
[362170572,1748052649383,-3645.91,0.00024463,2]
[362170573,1748052649392,-438.99,0.00024463,2]
[362170574,1748052649401,-430.0,0.00024463,2]
[362170575,1748052649411,-643.56,0.00024463,2]
[362170576,1748052649421,-430.0,0.00024463,2]
[362170577,1748052649430,-4348.92,0.00024463,2]
[362170578,1748052649440,-202.22033016,0.00024491,11]
[362170579,1748052649450,-157.0,0.00024536,2]
[362170580,1748052649459,-202.22033016,0.00024536,11]
[362170581,1748052649469,-430.0,0.00024562,2]
[362170582,1748052649478,-430.0,0.00024562,2]
[362170583,1748052649488,-430.0,0.00024562,2]
[362170584,1748052649500,-430.0,0.00024562,2]
[362170585,1748052649509,-430.0,0.00024562,2]
[362170586,1748052649518,-629.1,0.00024562,2]
[362170587,1748052649528,-504.81,0.00024562,2]
[362170588,1748052649538,-512.24,0.00024562,2]
[362170589,1748052649547,-605.63,0.00024562,2]
[362170590,1748052649557,-1799.06,0.00024562,2]
[362170591,1748052649568,-430.0,0.00024562,2]
[362170592,1748052649578,-437.27,0.00024562,2]
[362170593,1748052649588,-430.0,0.00024562,2]
[362170594,1748052649597,-3920.21,0.00024562,2]
[362170595,1748052649607,-430.0,0.00024562,2]
[362170596,1748052649617,-430.0,0.00024562,2]
[362170597,1748052649627,-430.0,0.00024562,2]
[362170598,1748052649636,-560.87,0.00024562,2]
[362170599,1748052649646,-757.97,0.00024562,2]
[362170600,1748052649656,-430.0,0.00024562,2]
[362170601,1748052649666,-430.0,0.00024563,2]
[362170602,1748052649675,-430.0,0.00024563,2]
[362170603,1748052649685,-456.5737888,0.00024563,2]
[362170604,1748052649694,-430.0,0.00024563,2]
[362170605,1748052649704,-456.04426752,0.00024563,2]
[362170606,1748052649713,-443.63996074,0.00024563,2]
[362170607,1748052649722,-363.20018047,0.00024563,2]
[362170608,1748052649732,-452.08646732,0.00024563,2]
[362170609,1748052649742,-430.0,0.00024563,2]
[362170610,1748052649836,-430.0,0.00024563,2]
[362170611,1748052649846,-452.60126908,0.00024563,2]
[362170612,1748052649856,-430.0,0.00024563,2]
[362170613,1748052649865,-430.0,0.00024563,2]
[362170614,1748052649875,-443.64624961,0.00024563,2]
[362170615,1748052649885,-430.0,0.00024563,2]
[362170616,1748052649895,-452.47637565,0.00024563,2]
[362170617,1748052649904,-430.0,0.00024563,2]
[362170618,1748052649914,-453.44639944,0.00024563,2]
[362170619,1748052649924,-430.0,0.00024563,2]
[362170620,1748052649934,-444.76094226,0.00024563,2]
[362170621,1748052649943,-430.0,0.00024563,2]
[362170622,1748052649953,-430.0,0.00024563,2]
[362170623,1748052649963,-444.5649118,0.00024563,2]
[362170624,1748052649972,-442.43876336,0.00024563,2]
[362170625,1748052649983,-430.0,0.00024563,2]
[362170626,1748052649994,-430.0,0.00024563,2]
[362170627,1748052650004,-430.0,0.00024563,2]
[362170628,1748052650014,-430.0,0.00024563,2]
[362170629,1748052650024,-430.0,0.00024563,2]
[362170630,1748052650034,-430.0,0.00024563,2]
[362170631,1748052650043,-430.0,0.00024563,2]
[362170632,1748052650053,-449.75161587,0.00024563,2]
[362170633,1748052650063,-544.53,0.00024563,2]
[362170634,1748052650072,-813.61,0.00024563,2]
[362170635,1748052650083,-884.73,0.00024563,2]
[362170636,1748052650092,-430.0,0.00024563,2]
[362170637,1748052650102,-6019.13,0.00024563,2]
[362170638,1748052650112,-482.36,0.00024563,2]
[362170639,1748052650122,-649.14,0.00024563,2]
[362170640,1748052650132,-430.0,0.00024563,2]
[362170641,1748052650142,-763.5,0.00024563,2]
[362170642,1748052650151,-430.0,0.00024563,2]
[362170643,1748052650161,-430.0,0.00024563,2]
[362170644,1748052650171,-508.27,0.00024563,2]
[362170645,1748052650180,-430.0,0.00024563,2]
[362170646,1748052650190,-430.0,0.00024563,2]
[362170647,1748052650199,-430.0,0.00024563,2]
[362170648,1748052650209,-430.0,0.00024563,2]
[362170649,1748052650219,-430.0,0.00024563,2]
[362170650,1748052650228,-430.0,0.00024563,2]
[362170651,1748052650238,-665.25,0.00024563,2]
[362170652,1748052650249,-694.5,0.00024563,2]
[362170653,1748052650258,-430.0,0.00024563,2]
[362170654,1748052650268,-430.0,0.00024563,2]
[362170655,1748052650277,-1238.06,0.00024563,2]
[362170656,1748052650288,-430.0,0.00024563,2]
[362170657,1748052650298,-269.14177555,0.00024563,2]
[362170658,1748052650308,-214.36507607,0.00024563,2]
[362170659,1748052650317,-430.0,0.00024563,2]
[362170660,1748052650327,-445.62025944,0.00024563,2]
[362170661,1748052650337,-4173.28,0.00024563,2]
[362170662,1748052650346,-783.112433,0.00024564,7]
[362170663,1748052650356,-430.0,0.00024566,2]
[362170664,1748052650365,-430.0,0.00024566,2]
[362170665,1748052650375,-161.85458506,0.00024566,2]
[362170666,1748052650384,-430.0,0.00024567,2]
[362170667,1748052650394,-430.0,0.00024567,2]
[362170668,1748052650403,-430.0,0.00024567,2]
[362170669,1748052650413,-430.0,0.00024567,2]
[362170670,1748052650423,-202.22033016,0.00024582,11]
[362170671,1748052650433,-202.22033016,0.00024627,11]
[362170672,1748052650442,-1680.0,0.00024651,2]
[362170673,1748052650452,-200.0,0.00024657,7]
[362170674,1748052650462,-202.33304886,0.00024657,7]
[362170675,1748052650471,-202.22033016,0.00024673,11]
[362170676,1748052650482,-22562.45,0.000247,2]
[362170677,1748052650493,-783.112433,0.000247,7]
[362170678,1748052650503,-783.112433,0.000247,7]
[362170679,1748052650513,-157.61818794,0.00024712,2]
[362170680,1748052650523,-202.22033016,0.00024718,11]
[362170681,1748052650532,-430.0,0.00024737,2]
[362170682,1748052650543,-430.0,0.00024737,2]
[362170683,1748052650552,-430.0,0.00024737,2]
[362170684,1748052650563,-5785.77,0.00024737,2]
[362170685,1748052650573,-845.65,0.00024737,2]
[362170686,1748052650583,-430.0,0.00024737,2]
[362170687,1748052650593,-8985.62,0.00024737,2]
[362170688,1748052650603,-7691.43,0.00024737,2]
[362170689,1748052650612,-430.0,0.00024737,2]
[362170690,1748052650622,-3645.91,0.00024737,2]
[362170691,1748052650632,-438.99,0.00024737,2]
[362170692,1748052650642,-430.0,0.00024737,2]
[362170693,1748052650652,-643.56,0.00024737,2]
[362170694,1748052650663,-430.0,0.00024737,2]
[362170695,1748052650672,-4348.92,0.00024737,2]
[362170696,1748052650682,-202.22033016,0.00024764,11]
[362170697,1748052650692,-202.22033016,0.00024809,11]
[362170698,1748052650703,-430.0,0.00024836,2]
[362170699,1748052650713,-430.0,0.00024836,2]
[362170700,1748052650722,-430.0,0.00024836,2]
[362170701,1748052650732,-430.0,0.00024836,2]
[362170702,1748052650741,-430.0,0.00024836,2]
[362170703,1748052650750,-629.1,0.00024836,2]
[362170704,1748052650760,-504.81,0.00024836,2]
[362170705,1748052650769,-512.24,0.00024836,2]
[362170706,1748052650778,-605.63,0.00024836,2]
[362170707,1748052650788,-1799.06,0.00024836,2]
[362170708,1748052650797,-430.0,0.00024836,2]
[362170709,1748052650806,-437.27,0.00024836,2]
[362170710,1748052650815,-430.0,0.00024836,2]
[362170711,1748052650825,-3920.21,0.00024836,2]
[362170712,1748052650834,-430.0,0.00024836,2]
[362170713,1748052650844,-430.0,0.00024836,2]
[362170714,1748052650853,-430.0,0.00024836,2]
[362170715,1748052650863,-560.87,0.00024836,2]
[362170716,1748052650872,-757.97,0.00024836,2]
[362170717,1748052650882,-430.0,0.00024836,2]
[362170718,1748052650891,-430.0,0.00024837,2]
[362170719,1748052650901,-430.0,0.00024837,2]
[362170720,1748052650910,-430.0,0.00024837,2]
[362170721,1748052650919,-568.5537054,0.00024837,2]
[362170722,1748052650929,-430.0,0.00024837,2]
[362170723,1748052650938,-430.0,0.00024837,2]
[362170724,1748052650948,-430.0,0.00024837,2]
[362170725,1748052650957,-430.0,0.00024837,2]
[362170726,1748052650966,-430.0,0.00024837,2]
[362170727,1748052650975,-430.0,0.00024837,2]
[362170728,1748052650985,-451.50273637,0.00024837,2]
[362170729,1748052650994,-450.02700107,0.00024837,2]
[362170730,1748052651004,-430.0,0.00024837,2]
[362170731,1748052651014,-430.0,0.00024837,2]
[362170732,1748052651024,-430.0,0.00024837,2]
[362170733,1748052651034,-430.0,0.00024837,2]
[362170734,1748052651043,-430.0,0.00024837,2]
[362170735,1748052651054,-522.4574813,0.00024837,2]
[362170736,1748052651063,-430.0,0.00024837,2]
[362170737,1748052651073,-544.53,0.00024837,2]
[362170738,1748052651083,-813.61,0.00024837,2]
[362170739,1748052651094,-884.73,0.00024837,2]
[362170740,1748052651104,-430.0,0.00024837,2]
[362170741,1748052651114,-6019.13,0.00024837,2]
[362170742,1748052651124,-482.36,0.00024837,2]
[362170743,1748052651134,-649.14,0.00024837,2]
[362170744,1748052651224,-430.0,0.00024837,2]
[362170745,1748052651234,-763.5,0.00024837,2]
[362170746,1748052651243,-430.0,0.00024837,2]
[362170747,1748052651253,-430.0,0.00024837,2]
[362170748,1748052651263,-508.27,0.00024837,2]
[362170749,1748052651272,-430.0,0.00024837,2]
[362170750,1748052651283,-430.0,0.00024837,2]
[362170751,1748052651292,-458.90257475,0.00024837,2]
[362170752,1748052651302,-430.0,0.00024837,2]
[362170753,1748052651311,-430.0,0.00024837,2]
[362170754,1748052651321,-430.0,0.00024837,2]
[362170755,1748052651331,-665.25,0.00024837,2]
[362170756,1748052651341,-694.5,0.00024837,2]
[362170757,1748052651350,-430.0,0.00024837,2]
[362170758,1748052651360,-430.0,0.00024837,2]
[362170759,1748052651370,-1238.06,0.00024837,2]
[362170760,1748052651379,-430.0,0.00024837,2]
[362170761,1748052651390,-430.0,0.00024837,2]
[362170762,1748052651399,-4173.28,0.00024837,2]
[362170763,1748052651409,-430.0,0.0002484,2]
[362170764,1748052651418,-430.0,0.0002484,2]
[362170765,1748052651428,-783.112433,0.0002484,7]
[362170766,1748052651438,-783.112425,0.0002484,7]
[362170767,1748052651448,-493.20495453,0.00024841,2]
[362170768,1748052651458,-556.65800339,0.00024841,2]
[362170769,1748052651467,-430.0,0.00024841,2]
[362170770,1748052651477,-430.0,0.00024841,2]
[362170771,1748052651487,-1000.0,0.00024848,2]
[362170772,1748052651501,-5000.0,0.00024854,2]
[362170773,1748052651511,-202.22033016,0.00024855,12]
[362170774,1748052651521,-500.0,0.00024868,7]
[362170775,1748052651530,-1500.0,0.00024868,2]
[362170776,1748052651542,-60399.25458647,0.000249,2]
[362170777,1748052651558,-401.92323987,0.000249,2]
[362170778,1748052651572,-26499.46627959,0.000249,2]
[362170779,1748052651584,-705.1420001,0.000249,2]
[362170780,1748052651595,-14685.08150465,0.000249,2]
[362170781,1748052912061,3020.89058677,0.00025799,30]
[362170792,1748053286368,2000.0,0.00025802,30]
[362170876,1748053838319,-160.897277,0.00013699,2]
[362170877,1748053838333,-220.0,0.00020274,3]
[362170878,1748053838345,-160.0,0.00020999,2]
[362170879,1748053838357,-4000.0,0.00021,2]
[362170880,1748053838369,-223.2770299,0.00021449,2]
[362170881,1748053838381,-160.66553988,0.00021923,2]
[362170882,1748053838393,-1200.0,0.00021989,2]
[362170884,1748053838405,-557.0,0.0002199,10]
[362170885,1748053838416,-1062.17,0.0002199,10]
[362170886,1748053838430,-885.14,0.0002199,10]
[362170887,1748053838441,-480.19996323,0.00021999,3]
[362170888,1748053838453,-430.0,0.00021999,3]
[362170889,1748053838465,-228.63298053,0.00021999,2]
[362170890,1748053838477,-1018.44071624,0.00022,3]
[362170891,1748053838491,-1981.55928376,0.00022,3]
[362170892,1748053838503,-1258.09631316,0.00022,2]
[362170901,1748053840501,-430.0,0.00021999,3]
[362170902,1748053840514,-626.20556976,0.00022,2]
[362170903,1748053840530,-26057.96061318,0.00022,2]
[362170932,1748053846430,-2034.80972883,0.00022,2]
[362170933,1748053846442,-70096.31092222,0.00022,2]
[362170934,1748053846452,-430.0,0.00022273,3]
[362170935,1748053846462,-520.23775627,0.00022547,3]
[362170936,1748053846472,-430.0,0.00022597,3]
[362170937,1748053846482,-4098.26,0.00022597,3]
[362170938,1748053846491,-430.0,0.00022597,3]
[362170939,1748053846500,-430.0,0.00022597,3]
[362170940,1748053846510,-599.0,0.00022597,3]
[362170941,1748053846519,-430.0,0.00022597,3]
[362170942,1748053846528,-6364.81,0.00022597,3]
[362170943,1748053846538,-430.0,0.00022597,3]
[362170945,1748053846548,-894.64583333,0.00022597,3]
[362170946,1748053846557,-430.0,0.00022597,3]
[362170947,1748053846567,-5448.1,0.00022597,3]
[362170948,1748053846576,-455.86,0.00022597,3]
[362170949,1748053846585,-12649.97184255,0.00022597,3]
[362170950,1748053846595,-2582.52,0.00022597,3]
[362170951,1748053846604,-430.0,0.00022597,3]
[362170952,1748053846613,-430.0,0.00022597,3]
[362170953,1748053846622,-430.0,0.00022597,3]
[362170954,1748053846631,-3080.48,0.00022597,3]
[362170955,1748053846640,-430.0,0.00022597,3]
[362170956,1748053846651,-1475.83,0.00022597,3]
[362170957,1748053846660,-430.0,0.00022597,3]
[362170958,1748053846670,-403.90990709,0.00022598,2]
[362170959,1748053846680,-401.61886442,0.00022598,2]
[362170960,1748053846689,-404.14599692,0.00022598,2]
[362170961,1748053846698,-430.0,0.00022598,3]
[362170962,1748053846711,-430.0,0.00022598,3]
[362170963,1748053846721,-430.0,0.00022598,3]
[362170964,1748053846730,-314.61239117,0.00022598,3]
[362170965,1748053846740,-430.0,0.00022598,3]
[362170966,1748053846749,-445.61,0.00022598,3]
[362170967,1748053846758,-430.0,0.00022598,3]
[362170968,1748053846767,-430.0,0.00022598,3]
[362170969,1748053846778,-430.0,0.00022598,3]
[362170970,1748053846788,-430.0,0.00022598,3]
[362170971,1748053846799,-430.0,0.00022598,3]
[362170972,1748053846809,-1274.33,0.00022598,3]
[362170973,1748053846819,-430.0,0.00022598,3]
[362170974,1748053846829,-430.0,0.00022598,3]
[362170975,1748053846839,-430.0,0.00022598,3]
[362170976,1748053846848,-430.0,0.00022598,3]
[362170977,1748053846857,-430.0,0.00022598,3]
[362170978,1748053846866,-2945.51,0.00022598,3]
[362170979,1748053846875,-430.0,0.00022598,3]
[362170980,1748053846885,-430.0,0.00022598,3]
[362170981,1748053846899,-430.0,0.00022598,3]
[362170982,1748053846908,-431.16,0.00022598,3]
[362170983,1748053846917,-467.56721144,0.00022598,3]
[362170984,1748053846927,-536.9,0.00022598,3]
[362170985,1748053846938,-451.9650585,0.00022599,2]
[362170986,1748053846948,-431.72742886,0.00022599,2]
[362170987,1748053846957,-400.0,0.00022599,2]
[362170988,1748053846968,-401.10248919,0.00022599,2]
[362170989,1748053846978,-401.00653396,0.00022599,2]
[362170990,1748053846987,-402.8279018,0.00022599,2]
[362170991,1748053846997,-190.68631319,0.00022599,2]
[362170992,1748053847007,-503.33124851,0.00022599,2]
[362170993,1748053847016,-474.14066462,0.00022599,2]
[362170994,1748053847026,-403.83515934,0.00022599,2]
[362170995,1748053847035,-400.0,0.00022599,2]
[362170996,1748053847046,-505.81156685,0.00022599,2]
[362170997,1748053847056,-209.55309732,0.00022599,2]
[362170998,1748053847066,-400.0,0.00022599,2]
[362170999,1748053847076,-504.84356965,0.00022599,2]
[362171000,1748053847085,-430.0,0.00022599,2]
[362171001,1748053847097,-430.0,0.00022599,2]
[362171002,1748053847107,-430.0,0.00022599,2]
[362171003,1748053847117,-430.0,0.00022599,2]
[362171004,1748053847128,-430.0,0.00022599,2]
[362171005,1748053847137,-430.0,0.00022599,2]
[362171006,1748053847147,-430.0,0.00022599,2]
[362171007,1748053847157,-430.0,0.00022599,2]
[362171008,1748053847168,-430.0,0.00022599,2]
[362171009,1748053847178,-430.0,0.00022599,2]
[362171010,1748053847188,-430.0,0.00022599,2]
[362171011,1748053847199,-434.91292452,0.00022599,3]
[362171012,1748053847210,-298.5686105,0.00022599,3]
[362171013,1748053847220,-430.0,0.00022599,3]
[362171014,1748053847229,-430.0,0.00022599,3]
[362171015,1748053847240,-430.0,0.00022599,3]
[362171016,1748053847249,-576.31,0.00022599,3]
[362171017,1748053847258,-430.0,0.00022599,3]
[362171018,1748053847268,-4263.55,0.00022599,3]
[362171019,1748053847278,-459.81,0.00022599,3]
[362171020,1748053847287,-430.0,0.00022599,3]
[362171021,1748053847297,-626.68,0.00022599,3]
[362171022,1748053847306,-350.5097771,0.00022599,3]
[362171023,1748053847316,-430.0,0.00022599,3]
[362171024,1748053847326,-430.0,0.00022599,3]
[362171025,1748053847335,-430.0,0.00022599,3]
[362171026,1748053847345,-471.22,0.00022599,2]
[362171027,1748053847354,-540.81,0.00022599,3]
[362171028,1748053847364,-430.0,0.00022599,3]
[362171029,1748053847373,-491.94,0.00022599,3]
[362171030,1748053847383,-430.0,0.00022599,3]
[362171031,1748053847392,-413.81631236,0.00022599,3]
[362171032,1748053847403,-2956.08,0.00022599,3]
[362171033,1748053847413,-430.0,0.00022599,3]
[362171034,1748053847424,-876.96,0.00022599,3]
[362171035,1748053847434,-430.0,0.00022599,3]
[362171036,1748053847443,-554.49097133,0.00022599,3]
[362171037,1748053847453,-430.0,0.000226,2]
[362171038,1748053847463,-441.46721304,0.000226,2]
[362171039,1748053847472,-430.0,0.000226,2]
[362171040,1748053847482,-167.09984329,0.000226,2]
[362171041,1748053847491,-157.33300637,0.000226,2]
[362171042,1748053847501,-459.2582302,0.000226,2]
[362171043,1748053847511,-432.22401132,0.000226,2]
[362171044,1748053847520,-434.70292089,0.000226,2]
[362171045,1748053847530,-435.98058619,0.000226,2]
[362171046,1748053847539,-436.31439482,0.000226,2]
[362171047,1748053847549,-432.9444185,0.000226,2]
[362171048,1748053847558,-431.90544157,0.000226,2]
[362171049,1748053847568,-433.43406547,0.000226,2]
[362171050,1748053847577,-161.55836484,0.000226,2]
[362171051,1748053847587,-404.12442026,0.000226,2]
[362171052,1748053847596,-432.13843004,0.000226,2]
[362171053,1748053847606,-430.0,0.000226,2]
[362171054,1748053847615,-430.0,0.000226,2]
[362171055,1748053847625,-289.68295588,0.000226,3]
[362171056,1748053847634,-430.0,0.000226,3]
[362171057,1748053847643,-430.0,0.000226,3]
[362171058,1748053847653,-437.85714791,0.000226,3]
[362171059,1748053847662,-432.73011892,0.000226,3]
[362171060,1748053847672,-453.34100876,0.000226,3]
[362171061,1748053847681,-437.93236832,0.000226,3]
[362171062,1748053847691,-437.02417458,0.000226,3]
[362171063,1748053847701,-456.83302784,0.000226,3]
[362171064,1748053847710,-441.01213222,0.000226,3]
[362171065,1748053847720,-430.0,0.000226,3]
[362171066,1748053847730,-436.94204424,0.000226,3]
[362171067,1748053847740,-430.0,0.000226,3]
[362171068,1748053847749,-470.0,0.000226,3]
[362171069,1748053847759,-430.0,0.000226,3]
[362171070,1748053847769,-430.0,0.000226,3]
[362171071,1748053847778,-410.3735783,0.000226,3]
[362171072,1748053847788,-430.0,0.000226,3]
[362171073,1748053847797,-433.95321482,0.000226,3]
[362171074,1748053847808,-470.0,0.000226,3]
[362171075,1748053847819,-403.68329803,0.000226,3]
[362171076,1748053847828,-439.58975437,0.000226,3]
[362171077,1748053847839,-438.53852053,0.000226,3]
[362171078,1748053847849,-414.67554306,0.000226,3]
[362171079,1748053847859,-440.43431858,0.000226,3]
[362171080,1748053847868,-432.19528001,0.000226,3]
[362171081,1748053847878,-432.96617126,0.000226,3]
[362171082,1748053847890,-423.8597539,0.000226,3]
[362171083,1748053847899,-433.593267,0.000226,3]
[362171084,1748053847909,-433.80883136,0.000226,3]
[362171085,1748053847919,-431.69792102,0.000226,3]
[362171086,1748053847931,-449.93619603,0.000226,3]
[362171087,1748053847940,-430.0,0.000226,3]
[362171088,1748053847950,-510.20146344,0.000226,3]
[362171089,1748053847960,-231.72973698,0.000226,3]
[362171090,1748053847971,-440.82769944,0.000226,3]
[362171091,1748053847980,-438.78520673,0.000226,3]
[362171092,1748053847990,-435.60204512,0.000226,3]
[362171093,1748053848000,-454.60984174,0.000226,3]
[362171094,1748053848009,-455.53033818,0.000226,3]
[362171095,1748053848020,-177.77777415,0.00022601,2]
[362171096,1748053848029,-500.0,0.00022676,2]
[362171097,1748053848039,-244.74546783,0.00022774,2]
[362171098,1748053848051,-207.4,0.00022781,2]
[362171099,1748053848062,-486.16070835,0.00022871,3]
[362171100,1748053848071,-4098.26,0.00022871,3]
[362171101,1748053848082,-430.0,0.00022871,3]
[362171102,1748053848092,-430.0,0.00022871,3]
[362171103,1748053848104,-599.0,0.00022871,3]
[362171104,1748053848116,-430.0,0.00022871,3]
[362171105,1748053848128,-6364.81,0.00022871,3]
[362171106,1748053848138,-430.0,0.00022871,3]
[362171107,1748053848149,-430.0,0.00022871,3]
[362171108,1748053848159,-5448.1,0.00022871,3]
[362171109,1748053848170,-455.86,0.00022871,3]
[362171110,1748053848182,-2582.52,0.00022871,3]
[362171111,1748053848193,-430.0,0.00022871,3]
[362171112,1748053848204,-430.0,0.00022871,3]
[362171113,1748053848214,-315.64459367,0.00022871,3]
[362171114,1748053848225,-3080.48,0.00022871,3]
[362171115,1748053848235,-430.0,0.00022871,3]
[362171116,1748053848247,-1475.83,0.00022871,3]
[362171117,1748053848257,-430.0,0.00022871,3]
[362171118,1748053848267,-430.0,0.00022872,3]
[362171119,1748053848279,-430.0,0.00022872,3]
[362171120,1748053848290,-430.0,0.00022872,3]
[362171121,1748053848300,-314.61239117,0.00022872,3]
[362171122,1748053848310,-430.0,0.00022872,3]
[362171123,1748053848321,-445.61,0.00022872,3]
[362171124,1748053848333,-430.0,0.00022872,3]
[362171125,1748053848347,-430.0,0.00022872,3]
[362171126,1748053848357,-430.0,0.00022872,3]
[362171127,1748053848369,-430.0,0.00022872,3]
[362171128,1748053848379,-1274.33,0.00022872,3]
[362171129,1748053848390,-430.0,0.00022872,3]
[362171130,1748053848401,-430.0,0.00022872,3]
[362171131,1748053848412,-430.0,0.00022872,3]
[362171132,1748053848425,-551.80834776,0.00022872,3]
[362171133,1748053848436,-430.0,0.00022872,3]
[362171134,1748053848448,-2945.51,0.00022872,3]
[362171135,1748053848461,-430.0,0.00022872,3]
[362171136,1748053848471,-430.0,0.00022872,3]
[362171137,1748053848483,-430.0,0.00022872,3]
[362171138,1748053848495,-431.16,0.00022872,3]
[362171139,1748053848507,-536.9,0.00022872,3]
[362171140,1748053848519,-430.0,0.00022873,2]
[362171141,1748053848531,-430.0,0.00022873,2]
[362171142,1748053848541,-430.0,0.00022873,2]
[362171143,1748053848553,-430.0,0.00022873,2]
[362171144,1748053848565,-430.0,0.00022873,2]
[362171145,1748053848576,-430.0,0.00022873,2]
[362171146,1748053848587,-430.0,0.00022873,2]
[362171147,1748053848599,-430.0,0.00022873,2]
[362171148,1748053848611,-430.0,0.00022873,2]
[362171149,1748053848623,-430.0,0.00022873,2]
[362171150,1748053848635,-430.0,0.00022873,2]
[362171151,1748053848645,-430.0,0.00022873,3]
[362171152,1748053848656,-430.0,0.00022873,3]
[362171153,1748053848666,-430.0,0.00022873,3]
[362171154,1748053848677,-576.31,0.00022873,3]
[362171155,1748053848687,-527.81022224,0.00022873,3]
[362171156,1748053848698,-4263.55,0.00022873,3]
[362171157,1748053848707,-459.81,0.00022873,3]
[362171158,1748053848719,-430.0,0.00022873,3]
[362171159,1748053848731,-626.68,0.00022873,3]
[362171160,1748053848742,-430.0,0.00022873,3]
[362171161,1748053848753,-430.0,0.00022873,3]
[362171162,1748053848763,-448.86251491,0.00022873,3]
[362171163,1748053848775,-471.22,0.00022873,2]
[362171164,1748053848786,-540.81,0.00022873,3]
[362171165,1748053848798,-430.0,0.00022873,3]
[362171166,1748053848808,-491.94,0.00022873,3]
[362171167,1748053848818,-430.0,0.00022873,3]
[362171168,1748053848828,-2956.08,0.00022873,3]
[362171169,1748053848838,-430.0,0.00022873,3]
[362171170,1748053848962,-876.96,0.00022873,3]
[362171171,1748053848979,-430.0,0.00022874,2]
[362171172,1748053848990,-439.80137338,0.00022874,2]
[362171173,1748053849001,-342.3168536,0.00022874,2]
[362171174,1748053849013,-430.0,0.00022874,2]
[362171175,1748053849024,-430.0,0.00022874,3]
[362171176,1748053849034,-430.0,0.00022874,3]
[362171177,1748053849045,-447.56511082,0.00022874,3]
[362171178,1748053849056,-430.0,0.00022874,3]
[362171179,1748053849066,-430.0,0.00022874,3]
[362171180,1748053849079,-422.929492,0.00022883,2]
[362171181,1748053849089,-894.64583333,0.00022883,2]
[362171182,1748053849099,-160.0,0.00022885,2]
[362171183,1748053849109,-3000.0,0.00023,7]
[362171184,1748053849119,-160.0,0.00023,3]
[362171185,1748053849130,-160.0,0.00023,3]
[362171186,1748053849139,-422.929492,0.00023,3]
[362171187,1748053849150,-12649.97184255,0.00023048,2]
[362171188,1748053849160,-212.51988043,0.00023048,2]
[362171189,1748053849171,-314.61239117,0.00023048,2]
[362171190,1748053849181,-4098.26,0.00023145,3]